{"text_format":"3","workbook":"xlsx","n_sheets":2,"sheets":["Chronologie","À propos de"],"not_rendered":{"charts":1,"images":2,"defined_names":2},"read":"whole","date_system":"1900"}

{"sheet":"Chronologie","index":0,"n_rows":49,"n_cols":10,"rows_kept":49}
[]
[]
[]
[{"$nulls":9},"MODÈLES DE LIGNE DE TEMPS par Vertex42.com"]
[{"$nulls":9},"https://www.vertex42.com/ExcelTemplates/timeline.html"]
[]
[]
[{"$nulls":9},"Conseils pour l’utilisation de ce modèle"]
[{"$nulls":9},"•  Insérez et supprimer des lignes entières quand vous modifiez les tables de données"]
[{"$nulls":9},"•  Évitez de laisser la colonne étiquettes vide"]
[{"$nulls":9},"•  Mettez en forme l’axe horizontal pour définir les limites min/max"]
[{"$nulls":9},"•  Entrez une position verticale entre -100 et 50"]
[{"$nulls":9},"•  Mettez en forme les étiquettes ou les marqueurs pour mettre en évidence des évènements précis"]
[{"$nulls":9},"•  Consultez les commentaires dans la ligne d’en-tête de la table pour plus d’informations"]
[]
[{"$nulls":9},"Autre notes"]
[{"$nulls":9},"•  Les lignes de caractères de suite des jalons sont les barres d’erreur de l’axe des ordonnées"]
[{"$nulls":9},"•  Les lignes de caractères de suite des tâches sont les barres d’erreur de l’axe des ordonnées"]
[{"$nulls":9},"•  Les durées des tâches sont les barres d’erreur de l’axe des abscisses"]
{"$rows_empty":8}
[null,"Tâches"]
[null,"Début","Fin","Durée","Étiquette","Vert. Position","Vert. Ligne"]
[]
[null,"2018-03-28",{"$f":"B31+D31-1","v":"2018-04-11"},15,{"$f":"\"Tâche 1 \"&CHAR(10)&TEXT(B31,\"j mmm\")&\" - \"&TEXT(C31,\"j mmm\")","v":"Tâche 1 \n28 mars - 11 avr"},-25,{"$f":"F31","v":-25}]
[null,{"$f":"C31+1","v":"2018-04-12"},"2018-05-01",20,{"$f":"\"Tâche 2 \"&CHAR(10)&TEXT(B32,\"j mmm\")&\" - \"&TEXT(C32,\"j mmm\")","v":"Tâche 2 \n12 avr - 1 mai"},{"$f":"F31-15","v":-40},{"$f":"F32-F31","v":-15}]
[null,{"$f":"C32+1","v":"2018-05-02"},"2018-05-25",24,{"$f":"\"Tâche 3 \"&CHAR(10)&TEXT(B33,\"j mmm\")&\" - \"&TEXT(C33,\"j mmm\")","v":"Tâche 3 \n2 mai - 25 mai"},{"$f":"F32-15","v":-55},{"$f":"F33-F32","v":-15}]
[null,"2018-04-28","2018-07-12",76,"Étiquette de tâche 4",-80,{"$f":"F34","v":-80}]
[null,"2018-06-15","2018-07-04",20,"Étiquette de tâche 5",-30,{"$f":"F35","v":-30}]
[null,{"$f":"C35+1","v":"2018-07-05"},"2018-08-03",30,"Étiquette de tâche 6",{"$f":"F35-15","v":-45},{"$f":"F36-F35","v":-15}]
[null,"2018-08-10","2018-09-10",32,"Étiquette de tâche 7",-20,{"$f":"F37","v":-20}]
[null,{"$f":"C37+1","v":"2018-09-11"},"2018-09-15",5,"Étiquette de tâche 8",-60,{"$f":"F38-F37","v":-40}]
[null,{"$f":"C38+1","v":"2018-09-16"},"2018-10-06",21,"Étiquette de tâche 9",{"$f":"F38-15","v":-75},{"$f":"F39-F38","v":-15}]
[{"$nulls":4},"Insérez les nouvelle lignes au-dessus de celle-ci"]
[]
[null,"Jalons"]
[null,"Date",null,null,"Étiquette","Position"]
[]
[null,"2018-04-02",null,null,{"$f":"\"Début, \"&TEXT(B45,\"j mmm\")","v":"Début, 2 avr"},30]
[null,{"$f":"C33","v":"2018-05-25"},null,null,"Jalon nº1",25]
[null,{"$f":"C36","v":"2018-08-03"},null,null,"Jalon nº2",20]
[null,{"$f":"C39","v":"2018-10-06"},null,null,{"$f":"\"Livraison, \"&TEXT(B48,\"j mmm\")","v":"Livraison, 6 oct"},15]
[{"$nulls":4},"Insérez les nouvelle lignes au-dessus de celle-ci"]

{"sheet":"À propos de","index":1,"n_rows":19,"n_cols":2,"rows_kept":19}
[]
[null,"LIGNE DE TEMPS D’UN PROJET par Vertex42.com"]
[null,"https://www.vertex42.com/ExcelTemplates/project-timeline.html"]
[]
[]
[null,"À propos de ce modèle"]
[null,"Ce modèle utilise un graphique en nuage de points avec des étiquettes de données et des barres d'erreur pour créer une ligne de temps de projet qui montre à la fois les jalons et les tâches avec des durées. Contrairement au diagramme de Gantt, qui montre chaque tâche sur une ligne séparée, vous contrôlez le positionnement vertical des tâches sur la ligne de temps. Vous pouvez spécifier la longueur de la ligne de caractères de suite verticale pour aider à afficher les dépendances des tâches."]
[]
[null,"Ce type de ligne de temps de projet est principalement utile pour une vue d'ensemble générale d'un projet plutôt que pour montrer une structure détaillée de répartition du travail."]
[]
[null,"Plus de modèles"]
[null,"Visitez Vertex42.com pour télécharger d'autres modèles de calendrier et de gestion de projet."]
[null,"Plus de modèles de lignes de temps"]
[null,"Plus de modèles de gestion de projet"]
[]
[null,"À propos de Vertex42"]
[null,"Vertex42.com fournit des modèles de feuilles de calcul de conception professionnelle à usage professionnel, personnel ou éducatif, dont la plupart peuvent être téléchargés gratuitement. La collection compte notamment différents calendriers, planificateurs et plannings, ainsi que des feuilles de calcul financières pour la budgétisation, la réduction d’endettement et l’amortissement de prêt."]
[]
[null,"Les entreprises trouveront également des modèles de facture, de feuille de temps, de suivi d’inventaire, d’états financiers et de planification de projet. Les enseignants et les étudiants pourront utiliser des ressources variées, notamment des emplois du temps, des carnets de notes et des feuilles de présence. Organisez votre vie famille avec des planificateurs de repas, des listes de contrôle et des journaux d’entraînement. Chaque modèle est minutieusement étudié, affiné et amélioré au fil du temps grâce aux commentaires de milliers d’utilisateurs."]